bitfinex/quotes_BTCUSD_20240620
["timestamp","ask_amount","ask_price","bid_price","bid_amount"]
[1718896998833,0.09173557,65010.0,65007.0,0.0124269]
[1718896999032,0.09173557,65011.0,65008.0,0.0124269]
[1718896999233,0.10073557,65012.0,65008.0,0.0124269]
[1718896999654,0.10073557,65012.0,65011.0,0.0124269]
[1718896999655,0.007,65012.0,65011.0,0.0124269]
[1718896999810,0.007,65012.0,65011.0,0.28848802]
[1718897000007,0.09176333,65019.0,65018.0,0.0124269]
[1718897000213,0.09176333,65020.0,65019.0,0.0124269]
[1718897000392,0.09176333,65022.0,65021.0,0.0124269]
[1718897000594,0.11466947,65024.0,65022.0,0.0124269]
[1718897000825,0.11466947,65024.0,65023.0,0.0124269]
[1718897001029,0.61740336,65030.0,65013.0,0.1794269]
[1718897001030,0.1823,65026.0,65013.0,0.1794269]
[1718897001237,0.1823,65026.0,65015.0,0.0124269]
[1718897001238,0.09178942,65018.0,65015.0,0.0124269]
[1718897001430,0.09178942,65018.0,65013.0,0.167]
[1718897001431,0.09178942,65018.0,65016.0,0.0124269]
[1718897001611,0.09178942,65018.0,65016.0,0.02352379]
[1718897001808,0.1823,65026.0,65016.0,0.02352379]
[1718897001991,0.09177843,65018.0,65016.0,0.02352379]
[1718897002799,0.09877843,65018.0,65016.0,0.02352379]
[1718897003430,0.06879871,65017.0,65016.0,0.01109689]
[1718897003630,0.09877843,65018.0,65016.0,0.01109689]
[1718897003853,0.09877843,65018.0,65016.0,0.02352379]
[1718897004055,0.09177843,65017.0,65016.0,0.02352379]
[1718897004262,0.09177843,65017.0,65016.0,0.01109689]
[1718897004500,0.09177843,65017.0,65016.0,0.02352379]
[1718897004708,0.09177843,65017.0,65016.0,0.01109689]
[1718897005120,0.007,65018.0,65016.0,0.01109689]
[1718897005324,0.007,65018.0,65011.0,0.28848802]
[1718897005325,0.1229,65021.0,65015.0,0.0124269]
[1718897005650,0.006,65017.0,65014.0,0.0124269]
[1718897005863,0.006,65017.0,65015.0,0.0124269]
[1718897006048,0.26049224,65021.0,65015.0,0.0124269]
[1718897006282,0.007,65018.0,65014.0,0.0124269]
[1718897006458,0.11465809,65015.0,65014.0,0.0124269]
[1718897007293,0.005,65017.0,65016.0,0.0124269]
[1718897008369,0.001,65017.0,65016.0,0.0124269]
[1718897009476,0.09267899,65017.0,65016.0,0.17498802]
[1718897009686,0.001,65017.0,65016.0,1.01319499]
[1718897009898,0.006,65017.0,65016.0,1.11319499]
[1718897010321,0.06875983,65033.0,65032.0,0.30808902]
[1718897010538,0.00863,65039.0,65032.0,0.30808902]
[1718897010539,0.07738983,65039.0,65035.0,0.0124269]
[1718897010748,0.07738983,65039.0,65038.0,0.0124269]
[1718897010957,0.07735986,65039.0,65038.0,0.16498802]
[1718897011172,0.00863,65039.0,65038.0,0.16498802]
[1718897012051,0.00963,65039.0,65038.0,0.16898802]
[1718897012465,0.01063,65039.0,65038.0,0.17198802]
[1718897013801,0.01063,65039.0,65038.0,0.18198802]
[1718897014977,0.01063,65039.0,65038.0,0.17198802]
[1718897016225,0.01063,65039.0,65038.0,0.18198802]
[1718897017428,0.01063,65039.0,65038.0,0.46348802]
[1718897019347,0.01063,65039.0,65038.0,0.45348802]
[1718897019552,0.01063,65039.0,65038.0,0.46474712]
[1718897023991,0.01063,65039.0,65038.0,0.18324712]
[1718897024255,0.01063,65039.0,65038.0,0.030686]
[1718897025079,0.00963,65039.0,65038.0,0.026686]
[1718897025549,0.01063,65039.0,65038.0,0.0192591]
[1718897025766,0.19293,65039.0,65038.0,0.0192591]
[1718897025976,0.505995,65039.0,65038.0,0.005]
[1718897026355,0.506995,65039.0,65038.0,0.008]
[1718897026581,0.48653,65039.0,65038.0,0.005]
[1718897026993,0.48853,65039.0,65038.0,0.005]
[1718897027167,0.48653,65039.0,65038.0,0.005]
[1718897027378,0.63909112,65039.0,65038.0,0.005]
[1718897027569,0.2985,65038.0,65022.0,0.0124269]
[1718897027801,0.2985,65038.0,65023.0,0.0124269]
[1718897027802,0.1823,65032.0,65023.0,0.0124269]
[1718897027952,0.1823,65032.0,65025.0,0.0124269]
[1718897028353,0.01823,65031.0,65022.0,0.0124269]
[1718897028560,0.1823,65037.0,65023.0,0.01138248]
[1718897028761,0.1823,65037.0,65022.0,0.0124269]
[1718897029043,0.1823,65037.0,65025.0,0.0124269]
[1718897029222,0.08297922,65036.0,65027.0,0.0124269]
[1718897029438,0.1823,65037.0,65028.0,0.0124269]
[1718897029639,0.005,65032.0,65028.0,0.0124269]
[1718897030089,0.005,65032.0,65031.0,0.0124269]
[1718897030707,0.005,65032.0,65031.0,0.02374357]
[1718897030907,0.014,65037.0,65031.0,0.02374357]
[1718897031111,0.00863,65039.0,65036.0,0.0124269]
[1718897031312,0.00863,65039.0,65038.0,0.0124269]
[1718897031832,0.00863,65039.0,65038.0,0.023686]
[1718897033226,0.01963,65039.0,65038.0,0.023686]
[1718897034884,0.02563,65039.0,65038.0,0.024686]
[1718897040742,0.02563,65039.0,65038.0,0.0122591]
[1718897040943,0.04675105,65039.0,65038.0,0.0122591]
[1718897041173,0.11559395,65040.0,65038.0,0.001]
[1718897041543,0.09163884,65039.0,65038.0,0.001]
[1718897041950,0.02395511,65040.0,65038.0,0.001]
[1718897042155,0.06874224,65039.0,65037.0,0.0124269]
[1718897042359,0.06874224,65039.0,65038.0,0.0124269]
[1718897042572,0.1160107,65041.0,65039.0,0.0124269]
[1718897042573,0.007,65040.0,65039.0,0.0124269]
[1718897043168,0.007,65040.0,65039.0,0.02367778]
[1718897043381,0.011,65040.0,65039.0,0.02367778]
[1718897043784,0.02435255,65041.0,65040.0,0.0124269]
[1718897044141,0.09311374,65041.0,65040.0,0.0124269]
[1718897044508,0.1160107,65041.0,65040.0,0.0124269]
[1718897044717,0.02435255,65041.0,65040.0,0.0124269]
[1718897045013,0.02435255,65041.0,65040.0,0.02366956]
[1718897046336,0.03235255,65041.0,65040.0,0.02466956]
[1718897046785,0.12408289,65041.0,65040.0,0.02466956]
[1718897047187,0.11259034,65041.0,65040.0,0.02566956]
[1718897047989,0.11260013,65041.0,65040.0,0.02566956]
[1718897048419,0.00086,65041.0,65040.0,0.17623068]
[1718897048575,0.09260764,65041.0,65040.0,0.23460375]
[1718897048792,0.00086,65041.0,65040.0,0.24060375]
[1718897049605,0.04673704,65041.0,65040.0,0.23560375]
[1718897050089,0.04773704,65041.0,65040.0,0.24560375]
[1718897050265,0.04773704,65041.0,65040.0,0.24460375]
[1718897050440,0.00186,65041.0,65040.0,0.24460375]
[1718897050824,0.00186,65041.0,65040.0,0.49403068]
[1718897051030,0.00186,65041.0,65040.0,0.51403068]
[1718897051228,0.00186,65041.0,65040.0,0.71603068]
[1718897051437,0.00186,65041.0,65040.0,0.7923124]
[1718897051640,0.00186,65041.0,65040.0,0.9923124]
[1718897051840,0.00186,65041.0,65040.0,1.0043124]
[1718897051841,0.00286,65041.0,65040.0,1.0043124]
[1718897052044,0.00286,65041.0,65040.0,1.1666124]
[1718897052246,0.00186,65041.0,65040.0,1.1566124]
[1718897052448,0.00086,65041.0,65040.0,1.1446124]
[1718897052842,0.00086,65041.0,65040.0,1.1566124]
[1718897052843,0.00186,65041.0,65040.0,1.1566124]
[1718897053268,0.00186,65041.0,65040.0,1.08033068]
[1718897054271,0.00286,65041.0,65040.0,1.09133068]
[1718897055589,0.00286,65041.0,65040.0,0.88933068]
[1718897055992,0.00286,65041.0,65040.0,0.49403068]
[1718897056200,0.04878195,65041.0,65040.0,0.49403068]
[1718897056438,0.00286,65041.0,65040.0,0.49403068]
[1718897056642,0.07174293,65041.0,65040.0,0.49403068]
[1718897057095,0.00286,65041.0,65040.0,0.49403068]
[1718897057261,0.00286,65041.0,65040.0,0.50403068]
[1718897057618,0.07175031,65041.0,65040.0,0.50403068]
[1718897057825,0.00286,65041.0,65040.0,0.57743375]
[1718897058780,0.00286,65041.0,65040.0,0.67743375]
[1718897058988,0.00286,65041.0,65040.0,0.87943375]
[1718897059190,0.00286,65041.0,65040.0,0.67743375]
[1718897060835,0.00286,65041.0,65040.0,0.87943375]
[1718897062257,0.00286,65041.0,65040.0,0.67743375]
[1718897066168,0.00286,65041.0,65040.0,0.25963375]
[1718897070021,0.00286,65041.0,65040.0,0.24963375]
[1718897070225,0.00286,65041.0,65040.0,0.19923068]
[1718897070401,0.07168277,65041.0,65040.0,0.19923068]
[1718897070606,0.00286,65041.0,65040.0,0.19923068]
[1718897070820,0.11470463,65045.0,65044.0,0.0124269]
[1718897070821,0.09175181,65045.0,65044.0,0.0124269]
[1718897071024,0.01103216,65046.0,65045.0,0.0124269]
[1718897071225,0.13764555,65053.0,65048.0,0.0124269]
[1718897071576,0.16766558,65054.0,65049.0,0.16498802]
[1718897071805,0.16766558,65054.0,65049.0,0.18148682]
[1718897072031,1.87837653,65050.0,65042.0,0.0124269]
[1718897072195,0.2885,65045.0,65044.0,0.01]
[1718897072628,0.2885,65045.0,65040.0,0.011]
[1718897072629,0.2875,65045.0,65040.0,0.011]
[1718897073233,0.44230682,65045.0,65040.0,0.011]
[1718897073432,0.1823,65041.0,65031.0,0.0124269]
[1718897073589,0.13762353,65036.0,65031.0,0.16498802]
[1718897073790,0.13762353,65036.0,65032.0,0.01130845]
[1718897074021,0.13762353,65036.0,65031.0,0.16498802]
[1718897074226,0.13762353,65036.0,65032.0,0.01130845]
[1718897074440,0.13762353,65036.0,65031.0,0.16498802]
[1718897074656,0.2875,65040.0,65032.0,0.01130845]
[1718897074657,0.13762353,65035.0,65032.0,0.01130845]
[1718897074994,0.2875,65033.0,65025.0,0.0124269]
[1718897075198,0.13760899,65031.0,65025.0,0.16498802]
[1718897075626,0.13758543,65030.0,65026.0,0.0113578]
[1718897075835,0.13758543,65030.0,65025.0,0.16498802]
[1718897076054,0.13758543,65030.0,65028.0,0.0124269]
[1718897076255,0.13758543,65031.0,65029.0,0.01133313]
[1718897076478,0.13758543,65032.0,65029.0,0.01133313]
[1718897076689,0.13758543,65032.0,65031.0,0.0144269]
[1718897076870,0.42908543,65033.0,65032.0,0.0124269]
[1718897077093,0.42908543,65033.0,65031.0,0.02374357]
[1718897077293,0.42908543,65033.0,65032.0,0.01130845]
[1718897077506,0.42910551,65033.0,65032.0,0.01130845]
[1718897077713,0.42910551,65033.0,65031.0,0.0124269]
[1718897077916,0.2875,65033.0,65032.0,0.0124269]
[1718897078125,0.13760551,65034.0,65033.0,0.0124269]
[1718897078342,0.2957,65039.0,65034.0,0.0124269]
[1718897078343,0.13760551,65035.0,65034.0,0.0124269]
[1718897078565,0.13760551,65037.0,65034.0,0.16498802]
[1718897078775,0.13757369,65038.0,65037.0,0.0124269]
[1718897078985,0.13757369,65038.0,65037.0,0.16498802]
[1718897079213,0.13757369,65038.0,65037.0,0.17625535]
[1718897079411,0.13757369,65038.0,65037.0,0.16382845]
[1718897079644,0.13757369,65038.0,65037.0,0.17625535]
[1718897080420,0.14457369,65038.0,65037.0,0.16482845]
[1718897081329,0.007,65038.0,65037.0,0.19498088]
[1718897081535,0.007,65038.0,65037.0,0.47898088]
[1718897081763,0.10170696,65038.0,65037.0,0.47898088]
[1718897081965,0.01,65038.0,65037.0,0.17725535]
[1718897082373,0.09870895,65038.0,65037.0,0.17725535]
[1718897082782,0.008,65038.0,65037.0,0.18425535]
[1718897083641,0.11563619,65038.0,65037.0,0.18325535]
[1718897083861,0.11563619,65038.0,65037.0,0.17082845]
[1718897083862,0.001,65038.0,65037.0,0.17082845]
[1718897084072,0.001,65038.0,65037.0,0.18082845]
[1718897084219,0.002,65038.0,65037.0,0.18082845]
[1718897084437,0.002,65038.0,65037.0,0.19325535]
[1718897084843,0.002,65038.0,65037.0,0.19320576]
[1718897085788,0.002,65038.0,65037.0,0.21252634]
[1718897086351,0.002,65038.0,65037.0,0.19320576]
[1718897088549,0.09371481,65038.0,65037.0,0.19320576]
[1718897088697,0.002,65038.0,65037.0,0.32390576]
[1718897088904,0.0707896,65038.0,65037.0,0.32390576]
[1718897089107,0.0707896,65038.0,65037.0,0.35729634]
[1718897089319,0.002,65038.0,65037.0,0.35729634]
[1718897089484,0.002,65038.0,65037.0,0.22659634]
[1718897089683,0.09371481,65038.0,65037.0,0.22659634]
[1718897090203,0.09371481,65038.0,65037.0,0.19320576]
[1718897090423,0.002,65038.0,65037.0,0.19320576]
[1718897094145,0.07079476,65038.0,65037.0,0.19320576]
[1718897094386,0.002,65038.0,65037.0,0.19320576]
[1718897094554,0.07079167,65038.0,65037.0,0.20320576]
[1718897094774,0.07079167,65038.0,65037.0,0.23641634]
[1718897095924,0.07079167,65038.0,65037.0,0.40601634]
[1718897096643,0.002,65038.0,65037.0,0.53291634]
[1718897100703,0.002,65038.0,65037.0,0.19320576]
[1718897101300,0.09373288,65038.0,65037.0,0.19320576]
[1718897101534,0.002,65038.0,65037.0,0.19320576]
[1718897101701,0.002,65038.0,65037.0,0.18193843]
[1718897102121,0.002,65038.0,65037.0,0.02877911]
[1718897102251,0.36131992,65038.0,65037.0,0.02877911]
[1718897102472,0.2977,65038.0,65037.0,0.017]
[1718897102877,0.2977,65038.0,65037.0,0.01]
[1718897102878,0.2967,65038.0,65037.0,0.01]
[1718897103338,0.2967,65038.0,65037.0,0.18098802]
[1718897103339,0.002,65038.0,65037.0,0.18098802]
[1718897103537,0.001,65038.0,65037.0,0.17098802]
[1718897103768,0.001,65038.0,65037.0,0.18276713]
[1718897104021,0.001,65038.0,65037.0,0.18476713]
[1718897104686,0.13760936,65040.0,65037.0,0.17876713]
[1718897104887,0.13760936,65041.0,65040.0,0.0124269]
[1718897105048,0.13760936,65042.0,65040.0,0.0124269]
[1718897105311,0.13760936,65042.0,65041.0,0.01174622]
[1718897105428,0.19006318,65044.0,65041.0,0.02417312]
[1718897105629,0.19006318,65044.0,65041.0,0.0124269]
[1718897106065,0.19006318,65044.0,65043.0,0.0124269]
[1718897107295,0.19006318,65044.0,65042.0,0.0124269]
[1718897107697,0.19606318,65044.0,65043.0,0.001]
[1718897107849,0.19606318,65044.0,65043.0,0.0134269]
[1718897108169,0.19706318,65044.0,65043.0,0.0134269]
[1718897108350,0.19706318,65044.0,65039.0,0.16498802]
[1718897108559,0.13767277,65040.0,65039.0,0.16498802]
[1718897109525,0.45704184,65040.0,65039.0,0.01176266]
[1718897109740,0.4341642,65040.0,65039.0,0.01176266]
[1718897109889,0.4341642,65040.0,65026.0,0.0124269]
[1718897110130,0.15487983,65032.0,65026.0,0.0124269]
[1718897110337,0.15487983,65032.0,65027.0,0.0124269]
[1718897110673,0.15487983,65032.0,65026.0,0.0124269]
[1718897110801,0.15487983,65033.0,65025.0,0.0124269]
[1718897111009,0.15487983,65033.0,65024.0,0.0124269]
[1718897111200,0.001,65032.0,65031.0,0.010946]
[1718897111430,0.001,65032.0,65031.0,0.01008034]
[1718897111635,0.15487983,65035.0,65031.0,8.034e-05]
[1718897112005,0.001,65033.0,65031.0,0.00908034]
[1718897112207,0.001,65033.0,65031.0,8.034e-05]
[1718897113195,0.001,65032.0,65031.0,0.00608034]
[1718897113631,0.002,65032.0,65031.0,0.01608034]
[1718897114072,0.001,65032.0,65031.0,0.00608034]
[1718897114914,0.002,65032.0,65031.0,8.034e-05]
[1718897115115,0.002,65032.0,65031.0,0.00108034]
[1718897115462,0.15492436,65035.0,65031.0,0.01350724]
[1718897115667,0.15492436,65035.0,65031.0,0.00108034]
[1718897115668,0.002,65032.0,65031.0,0.00108034]
[1718897116207,0.002,65032.0,65031.0,8.034e-05]
[1718897116410,0.1570187,65032.0,65031.0,8.034e-05]
[1718897116622,0.1570187,65032.0,65031.0,0.00308034]
[1718897117031,0.1550187,65032.0,65031.0,0.00308034]
[1718897117231,0.1550187,65032.0,65031.0,0.00408034]
[1718897117548,0.1550187,65032.0,65031.0,0.00308034]
[1718897117932,0.1570187,65032.0,65031.0,0.00308034]
[1718897118976,0.002,65032.0,65031.0,0.01550724]
[1718897119190,0.002,65032.0,65031.0,0.00308034]
[1718897119352,0.01156448,65032.0,65031.0,0.00308034]
[1718897120210,0.002,65032.0,65031.0,0.00308034]
[1718897121101,0.002,65032.0,65031.0,0.47196836]
[1718897121315,0.002,65032.0,65031.0,0.5191652]
[1718897121511,0.09394342,65032.0,65031.0,0.531004]
[1718897122153,0.002,65032.0,65031.0,0.531004]
[1718897122291,0.01156638,65032.0,65031.0,0.528004]
[1718897122508,0.10351142,65032.0,65031.0,0.528004]
[1718897122697,0.10451142,65032.0,65031.0,0.534004]
[1718897123346,0.003,65032.0,65031.0,1.032364]
[1718897123484,0.003,65032.0,65031.0,0.850064]
[1718897123890,0.001,65032.0,65031.0,0.850064]
[1718897124353,0.001,65032.0,65031.0,0.860064]
[1718897124354,0.002,65032.0,65031.0,0.860064]
[1718897124523,0.001,65032.0,65031.0,0.850064]
[1718897124731,0.001,65032.0,65031.0,0.85002345]
[1718897124931,0.09194504,65036.0,65035.0,0.0224269]
[1718897125145,0.00086,65044.0,65043.0,0.00998902]
[1718897125349,0.00086,65044.0,65043.0,0.16498802]
[1718897126163,0.00086,65044.0,65043.0,0.17672814]
[1718897126995,0.00086,65044.0,65043.0,0.19072814]
[1718897127240,0.00086,65044.0,65043.0,0.22650095]
[1718897128509,0.00086,65044.0,65043.0,0.19072814]
[1718897129548,0.00186,65044.0,65043.0,0.20172814]
[1718897130709,0.00186,65044.0,65043.0,0.18930124]
[1718897130912,0.13988848,65044.0,65043.0,0.17756112]
[1718897131041,0.00186,65044.0,65043.0,0.17756112]
[1718897132052,0.00186,65044.0,65043.0,0.025]
[1718897134904,0.03786835,65044.0,65043.0,0.025]
[1718897135246,0.19321526,65044.0,65043.0,0.025]
[1718897135463,0.03786835,65044.0,65043.0,0.025]
[1718897135640,0.03786835,65044.0,65043.0,0.011]
[1718897136115,0.03786835,65044.0,65043.0,0.017]
[1718897136862,0.03686835,65044.0,65043.0,0.006]
[1718897137061,0.32366835,65044.0,65043.0,0.006]
[1718897137514,0.38766,65044.0,65043.0,0.006]
[1718897138965,0.38766,65044.0,65043.0,0.01]
[1718897139943,0.4111278,65044.0,65043.0,0.01]
[1718897143337,0.4111278,65044.0,65033.0,0.0124269]
[1718897143559,0.13809943,65035.0,65034.0,0.15256112]
[1718897143932,0.1381154,65035.0,65034.0,0.15256112]
[1718897144339,0.4211278,65044.0,65034.0,0.15256112]
[1718897144340,0.15537983,65039.0,65034.0,0.15256112]
[1718897144775,0.15537983,65038.0,65034.0,0.15456112]
[1718897146135,0.15537983,65035.0,65034.0,0.002]
[1718897146332,0.4702,65035.0,65034.0,0.001]
[1718897146540,0.48573798,65035.0,65034.0,0.001]
[1718897147288,0.1823,65035.0,65034.0,0.001]
[1718897147674,0.1883,65035.0,65034.0,0.001]
[1718897148330,0.006,65035.0,65034.0,0.45398802]
[1718897149128,0.008,65035.0,65034.0,0.45398802]
[1718897149711,0.008,65035.0,65034.0,0.44156112]
[1718897151201,0.03212085,65035.0,65034.0,0.44156112]
[1718897152679,0.03212085,65035.0,65034.0,0.15356112]
[1718897153284,0.03212085,65035.0,65034.0,0.001]
[1718897154088,0.20629679,65035.0,65034.0,0.001]
[1718897154437,0.03212085,65035.0,65034.0,0.001]
[1718897154635,0.03212085,65035.0,65034.0,0.01281413]
[1718897155530,0.1875126,65035.0,65034.0,0.01281413]
[1718897156155,0.18751142,65035.0,65034.0,0.01281413]
[1718897156408,0.03212085,65035.0,65034.0,0.01281413]
[1718897158787,0.05461248,65035.0,65034.0,0.01281413]
[1718897158995,0.21001756,65035.0,65034.0,0.01281413]
[1718897159180,0.05461248,65035.0,65034.0,0.01281413]
[1718897160890,0.21001252,65035.0,65034.0,0.01281413]
[1718897161090,0.05461248,65035.0,65034.0,0.01281413]
[1718897161212,0.05461248,65035.0,65034.0,0.001]
[1718897162266,0.53951248,65035.0,65034.0,0.001]
[1718897162515,0.53951248,65035.0,65031.0,3.979e-05]
[1718897162516,0.3026,65034.0,65031.0,3.979e-05]
[1718897162728,0.2676,65033.0,65031.0,3.979e-05]
[1718897163374,0.5071,65032.0,65031.0,3.979e-05]
[1718897163569,0.6071,65032.0,65031.0,3.979e-05]
[1718897163692,0.74131678,65032.0,65031.0,0.00103979]
[1718897163921,0.74131678,65032.0,65031.0,0.00203979]
[1718897164124,0.74131678,65032.0,65031.0,0.00103979]
[1718897164323,0.74131678,65032.0,65031.0,0.00203979]
[1718897165127,0.4071,65032.0,65031.0,0.00203979]
[1718897165338,0.75966112,65032.0,65031.0,0.00103979]
[1718897165637,0.77366112,65032.0,65031.0,0.00203979]
[1718897165837,0.90294665,65032.0,65031.0,0.00103979]
[1718897166038,1.01694665,65032.0,65031.0,0.00203979]
[1718897166401,0.4937,65021.0,65017.0,0.000946]
[1718897166715,0.676,65018.0,65017.0,0.000946]
[1718897166926,0.476,65018.0,65017.0,0.000946]
[1718897167136,0.776,65018.0,65017.0,0.000946]
[1718897167348,1.00224036,65018.0,65017.0,0.000946]
[1718897167569,1.16404127,65018.0,65017.0,0.000946]
[1718897167780,1.16404127,65018.0,64990.0,0.0124269]
[1718897167781,0.4937,65010.0,64993.0,0.1366]
[1718897167996,0.1823,64994.0,64993.0,0.1366]
[1718897169469,0.1823,64994.0,64986.0,0.15256112]
[1718897169470,0.1823,64994.0,64987.0,0.1366]
[1718897169672,0.09173172,64990.0,64988.0,0.15256112]
[1718897169879,0.1823,64989.0,64988.0,0.01219272]
[1718897170143,0.001,64994.0,64988.0,0.01219272]
[1718897170144,0.11466465,64993.0,64988.0,0.01219272]
[1718897170460,0.29796465,64994.0,64993.0,0.00243788]
[1718897170672,0.29696465,64994.0,64993.0,0.0124269]
[1718897171001,0.1823,64994.0,64993.0,0.0124269]
[1718897171414,0.11466465,64998.0,64997.0,0.0124269]
[1718897171415,0.13710605,64998.0,64997.0,0.0124269]
[1718897171616,0.0224414,64998.0,64994.0,0.2799]
[1718897171747,0.0224414,64998.0,64993.0,0.01215154]
[1718897171956,0.0224414,64998.0,64989.0,0.13278902]
[1718897171957,0.1823,64994.0,64989.0,0.1228]
[1718897172287,0.1823,64994.0,64990.0,0.15256112]
[1718897172508,0.1823,64994.0,64990.0,0.16498802]
[1718897173244,0.001,64993.0,64990.0,0.16498802]
[1718897173485,0.1823,64994.0,64990.0,0.16498802]
[1718897173700,0.1823,64994.0,64990.0,0.15256112]
[1718897173902,0.1843,64994.0,64989.0,0.1228]
[1718897174110,0.1823,64994.0,64989.0,0.1228]
[1718897174640,0.001,64993.0,64989.0,0.1228]
[1718897174841,0.1823,64994.0,64989.0,0.1228]
[1718897175233,0.1843,64994.0,64989.0,0.1228]
[1718897175916,0.1843,64994.0,64989.0,0.1352269]
[1718897177260,0.1843,64994.0,64989.0,0.1228]
[1718897177821,0.1843,64994.0,64983.0,0.0124269]
[1718897177822,0.07628172,64993.0,64985.0,0.1244]
[1718897178468,0.1843,64994.0,64985.0,0.1244]
[1718897178664,0.1823,64989.0,64985.0,0.1368269]
[1718897178883,0.1823,64989.0,64985.0,0.1244]
[1718897180075,0.1833,64989.0,64985.0,0.1244]
[1718897180286,0.20399342,64989.0,64979.0,0.125346]
[1718897180489,0.1823,64983.0,64979.0,0.125346]
[1718897182233,0.1823,64983.0,64979.0,0.000946]
[1718897182502,0.46258172,64982.0,64979.0,0.000946]
[1718897182749,0.54706989,64982.0,64979.0,0.000946]
[1718897182957,0.47078817,64982.0,64979.0,0.000946]
[1718897183752,0.48178817,64982.0,64979.0,0.000946]
[1718897183985,0.4113,64982.0,64979.0,0.000946]
[1718897184308,0.3973,64982.0,64979.0,0.000946]
[1718897184512,0.4807,64980.0,64979.0,0.00086995]
[1718897184845,0.4807,64980.0,64974.0,0.009471]
[1718897184846,0.2,64976.0,64974.0,0.009471]
[1718897185043,0.2823,64975.0,64974.0,0.009471]
[1718897186063,0.56616112,64975.0,64974.0,0.009471]
[1718897186264,0.76616112,64975.0,64974.0,0.009471]
[1718897186645,0.77816112,64975.0,64974.0,0.009471]
[1718897186858,0.89901822,64975.0,64974.0,0.009471]
[1718897187224,0.69901822,64975.0,64974.0,0.009471]
[1718897187579,0.71301822,64975.0,64974.0,0.009471]
[1718897188326,0.40986112,64975.0,64974.0,0.009471]
[1718897188516,0.4396,64975.0,64974.0,0.009471]
[1718897188712,0.126,64975.0,64974.0,0.145171]
[1718897188932,0.126,64975.0,64974.0,0.15747905]
[1718897190148,0.026,64975.0,64974.0,0.15747905]
[1718897191313,0.026,64975.0,64974.0,0.03420595]
[1718897191516,0.014,64975.0,64974.0,0.03420595]
[1718897191717,0.02296112,64983.0,64974.0,0.03420595]
[1718897191718,0.02296112,64983.0,64976.0,0.0124269]
[1718897192132,0.1,64985.0,64974.0,0.009471]
[1718897192297,0.1823,64981.0,64974.0,0.009471]
[1718897192497,0.1,64980.0,64974.0,0.009471]
[1718897192701,0.1,64980.0,64975.0,0.01229981]
[1718897194094,0.1,64980.0,64978.0,0.0124269]
[1718897194291,0.014,64983.0,64982.0,0.2913]
[1718897194496,0.014,64983.0,64982.0,0.3037269]
[1718897194788,0.014,64983.0,64982.0,0.31596904]
[1718897195192,0.02286447,64985.0,64982.0,0.31596904]
[1718897195438,0.02286447,64985.0,64983.0,0.0440238]
[1718897195650,0.4798,64995.0,64987.0,0.0124269]
[1718897195856,0.061687,65001.0,64988.0,0.0124269]
[1718897195857,0.1823,65000.0,64988.0,0.0124269]
[1718897196059,0.1823,65000.0,64988.0,0.02461962]
[1718897196060,0.33485414,65000.0,64988.0,0.02461962]
[1718897196261,0.1823,64995.0,64988.0,0.01219272]
[1718897196372,0.1823,64995.0,64986.0,0.0124269]
[1718897196598,0.1823,64995.0,64987.0,0.01220096]
[1718897196801,0.20706394,64995.0,64986.0,0.0124269]
[1718897197016,0.20706394,64995.0,64988.0,0.01219272]
[1718897197247,0.1823,64993.0,64987.0,0.0124269]
[1718897197441,0.1823,64993.0,64989.0,0.02461138]
[1718897197639,0.1823,64993.0,64989.0,0.0124269]
[1718897197851,0.1823,64993.0,64990.0,0.01217625]
[1718897198058,0.10957174,64992.0,64990.0,0.02460315]
[1718897198290,0.00957174,64991.0,64990.0,0.0124269]
[1718897198500,0.00957174,64991.0,64990.0,0.16498802]
[1718897198708,0.00957174,64991.0,64990.0,0.46828802]
[1718897198910,0.001,64995.0,64994.0,0.0124269]
[1718897199200,0.01057023,64995.0,64994.0,0.16498802]
[1718897199424,0.01057023,64995.0,64994.0,0.23617776]
[1718897199697,0.00086,65017.0,65009.0,0.0124269]
[1718897199958,0.00086,65017.0,65008.0,0.0124269]
[1718897199959,0.00957152,65016.0,65008.0,0.0124269]
[1718897200134,0.18316,65017.0,65008.0,0.0124269]
[1718897200332,0.18316,65017.0,65009.0,0.01201982]
[1718897200563,0.018316,65016.0,65009.0,0.01201982]
[1718897200857,0.018316,65016.0,65009.0,0.0124269]
[1718897201064,0.018316,65016.0,65003.0,0.15256112]
[1718897201065,0.118316,65016.0,65010.0,0.01201159]
[1718897201266,0.1823,65012.0,65002.0,0.28]
[1718897201473,0.1823,65012.0,65011.0,0.01200336]
[1718897201679,0.1823,65012.0,65002.0,0.2924269]
[1718897201904,0.1823,65012.0,65011.0,0.01200336]
[1718897202125,0.1823,65012.0,65002.0,0.28]
[1718897202525,0.1823,65012.0,65003.0,0.01206921]
[1718897202664,0.05802,65011.0,65003.0,0.01206921]
[1718897202917,0.05802,65011.0,65003.0,0.02449611]
[1718897203134,0.05802,65011.0,65004.0,0.0124269]
[1718897203341,0.05802,65011.0,65005.0,0.01205274]
[1718897203671,0.05802,65011.0,65002.0,0.28]
[1718897203873,0.036712,65010.0,65006.0,0.01204451]
[1718897204185,0.00957649,65009.0,65007.0,0.01203628]
[1718897204412,0.00957649,65008.0,65002.0,0.28]
[1718897204626,0.00957649,65007.0,65002.0,0.28]
[1718897204975,0.00957649,65006.0,65002.0,0.28]
[1718897205186,0.00957641,65005.0,65002.0,0.28]
[1718897205613,0.1823,65003.0,64996.0,0.1646]
[1718897205815,0.00957641,65002.0,64996.0,0.1646]
[1718897206022,0.00957641,65002.0,65001.0,0.0124269]
[1718897206167,0.1823,65006.0,65001.0,0.0124269]
[1718897206335,0.10957641,65005.0,65003.0,0.0124269]
[1718897206535,0.1,65011.0,65005.0,0.0124269]
[1718897206771,0.00957723,65010.0,65005.0,0.0124269]
[1718897207353,0.00957723,65010.0,65006.0,0.1265]
[1718897208144,0.1,65011.0,65008.0,0.1714269]
[1718897208360,0.01457757,65010.0,65008.0,0.1714269]
[1718897208564,0.00957757,65009.0,65008.0,0.1714269]
[1718897209164,0.001,65010.0,65008.0,0.1714269]
[1718897209424,0.001,65010.0,65009.0,0.0124269]
[1718897209632,0.006,65010.0,65009.0,0.0124269]
[1718897210030,0.005,65010.0,65009.0,0.0124269]
[1718897210620,0.005,65010.0,65008.0,0.1714269]